[Event "65th Superfinal RUS-ch Women"]
[Site "Chita"]
[Date "2015.08.09"]
[Round "1"]
[White "Lagno, Kateryna"]
[Black "Kovalevskaya, Ekaterina"]
[Result "1/2-1/2"]
[ECO "B32"]
[WhiteElo "2530"]
[BlackElo "2453"]
[Annotator "Robot 8"]
[PlyCount "36"]
[EventDate "2015.??.??"]
[EventCountry "RUS"]
[TimeControl "40/5400+30:1800+30"]

1. e4 c5 2. Nf3 Nc6 3. d4 cxd4 4. Nxd4 e5 5. Nb5 d6 6. c4 Be7 7. N1c3 a6 8. Na3
Nf6 9. Nc2 O-O 10. Be2 Be6 11. O-O Rc8 12. Be3 h6 13. Qd2 Nxe4 14. Nxe4 f5 15.
f3 fxe4 16. fxe4 Qc7 17. Bxh6 gxh6 18. Qxh6 Qd7 1/2-1/2

[Event "65th Superfinal RUS-ch Women"]
[Site "Chita"]
[Date "2015.08.09"]
[Round "1"]
[White "Savina, Anastasia"]
[Black "Guseva, Marina"]
[Result "1/2-1/2"]
[ECO "A11"]
[WhiteElo "2429"]
[BlackElo "2431"]
[Annotator "Robot 8"]
[PlyCount "102"]
[EventDate "2015.??.??"]
[EventCountry "RUS"]
[TimeControl "40/5400+30:1800+30"]

1. Nf3 d5 2. c4 c6 3. e3 Nf6 4. Nc3 e6 5. Qc2 Nbd7 6. b3 b6 7. Bb2 Bb7 8. d4
Bd6 9. Bd3 O-O 10. O-O c5 11. cxd5 exd5 12. Rad1 Qe7 13. Bf5 Rad8 14. Rfe1 Rfe8
15. Nb5 Bb8 16. dxc5 bxc5 17. Ba3 g6 18. Bh3 Ne4 19. Nc3 Ndf6 20. Bb2 Qc7 21.
Nxe4 Nxe4 22. g3 Bc8 23. Bxc8 Qxc8 24. Ba1 Qf5 25. Kg2 Rc8 26. Qb2 f6 27. Qe2
Qe6 28. h4 Bc7 29. h5 g5 30. Nh2 Ba5 31. Rf1 Bc3 32. Qg4 Bxa1 33. Qxe6+ Rxe6
34. Rxa1 c4 35. bxc4 dxc4 36. Nf3 c3 37. Rac1 Rb6 38. Rc2 Rb2 39. Rfc1 Rcb8 40.
Nd4 Rxc2 41. Rxc2 Rb2 42. g4 Rxc2 43. Nxc2 Kf7 44. Kf3 Nc5 45. Ke2 Ke6 46. f3
Kd5 47. e4+ Kc4 48. Ne3+ Kd4 49. Nc2+ Kc4 50. Ne3+ Kd4 51. Nc2+ Kc4 1/2-1/2

[Event "65th Superfinal RUS-ch Women"]
[Site "Chita"]
[Date "2015.08.09"]
[Round "1"]
[White "Kashlinskaya, Alina"]
[Black "Pogonina, Natalija"]
[Result "0-1"]
[ECO "D35"]
[WhiteElo "2441"]
[BlackElo "2460"]
[Annotator "Robot 8"]
[PlyCount "114"]
[EventDate "2015.??.??"]
[EventCountry "RUS"]
[TimeControl "40/5400+30:1800+30"]

1. d4 Nf6 2. c4 e6 3. Nc3 d5 4. cxd5 exd5 5. Bg5 c6 6. e3 Bf5 7. Qf3 Bg6 8.
Bxf6 Qxf6 9. Qxf6 gxf6 10. h4 h6 11. Kd2 Nd7 12. h5 Bh7 13. Bd3 Bxd3 14. Kxd3
Rg8 15. g3 f5 16. Nf3 Nf6 17. Ne2 a5 18. Raf1 Ne4 19. Nh4 Nd6 20. Nf4 a4 21.
Kc2 Be7 22. Nd3 Bxh4 23. Rxh4 Ke7 24. Rf4 Rg5 25. Rh1 Ne4 26. Ne5 Nd6 27. g4
fxg4 28. Nxg4 f5 29. Ne5 Rg2 30. Ng6+ Kf6 31. a3 Re8 32. Rh3 Re4 33. Rff3 Reg4
34. Nf4 Rg1 35. Ne2 Re1 36. Ng3 Kg5 37. Kd2 Ra1 38. Ne2 Ne4+ 39. Kc2 Rg2 40.
Rf4 Rxf2 41. Rxf2 Nxf2 42. Rg3+ Ng4 43. Nc1 Kxh5 44. b3 axb3+ 45. Kb2 Rxc1 46.
Kxc1 Kg5 47. Kd2 h5 48. Rg1 h4 49. Ke2 h3 50. Rb1 h2 51. Kf3 b2 52. a4 Kh4 53.
Kg2 Nxe3+ 54. Kxh2 Nc4 55. Kg2 Kg4 56. Kf2 Kf4 57. Ke2 Ke4 0-1

[Event "65th Superfinal RUS-ch Women"]
[Site "Chita"]
[Date "2015.08.09"]
[Round "1"]
[White "Girya, Olga"]
[Black "Ovod, Evgenija"]
[Result "1-0"]
[ECO "D41"]
[WhiteElo "2487"]
[BlackElo "2327"]
[Annotator "Robot 8"]
[PlyCount "113"]
[EventDate "2015.??.??"]
[EventCountry "RUS"]
[TimeControl "40/5400+30:1800+30"]

1. d4 d5 2. c4 e6 3. Nf3 Nf6 4. Nc3 c5 5. cxd5 Nxd5 6. e4 Nxc3 7. bxc3 cxd4 8.
cxd4 Bb4+ 9. Bd2 Bxd2+ 10. Qxd2 O-O 11. Rc1 b6 12. Bd3 Bb7 13. O-O Nc6 14. Bb1
Rc8 15. Rfd1 Qd6 16. Qe3 Rfd8 17. e5 Qe7 18. Ng5 h6 19. Ne4 Nb4 20. Nd6 Rxc1
21. Rxc1 Ba8 22. Qd2 Nd5 23. Be4 f5 24. Bf3 Kh7 25. Rc4 Kg6 26. a3 Qg5 27.
Qxg5+ hxg5 28. Rc8 Rxc8 29. Nxc8 g4 30. Bxd5 Bxd5 31. Nxa7 Bc4 32. Nc8 b5 33.
f4 gxf3 34. gxf3 f4 35. Nd6 Bd5 36. Nxb5 Bxf3 37. a4 Bc6 38. Kf2 Kh5 39. Nc3 g5
40. a5 Kg4 41. d5 exd5 42. Ne2 Kh5 43. a6 d4 44. Nxd4 Ba8 45. Ne6 Kg6 46. a7
Bb7 47. h3 Kf5 48. Nc7 Kxe5 49. a8=Q Bxa8 50. Nxa8 Ke4 51. Nb6 f3 52. Nd7 Kf4
53. Nf6 Kf5 54. Ng4 Kf4 55. Nh2 Ke4 56. Nxf3 Kf4 57. Nh2 1-0

[Event "65th Superfinal RUS-ch Women"]
[Site "Chita"]
[Date "2015.08.09"]
[Round "1"]
[White "Gunina, Valentina"]
[Black "Goryachkina, Aleksandra"]
[Result "0-1"]
[ECO "A30"]
[WhiteElo "2531"]
[BlackElo "2474"]
[Annotator "Robot 8"]
[PlyCount "77"]
[EventDate "2015.??.??"]
[EventCountry "RUS"]
[TimeControl "40/5400+30:1800+30"]

1. Nf3 Nf6 2. c4 e6 3. e3 c5 4. b3 b6 5. Bb2 Bb7 6. Be2 Be7 7. O-O O-O 8. d4
cxd4 9. Nxd4 a6 10. Nc3 Qc7 11. Rc1 d6 12. Bd3 Nbd7 13. Bb1 Rac8 14. Qe1 Qb8
15. f4 Rfe8 16. Qg3 Bf8 17. a4 Qa8 18. Nf3 h6 19. Rcd1 Red8 20. Nd2 Nc5 21. a5
bxa5 22. Na4 Nfe4 23. Nxe4 Nxe4 24. Qg4 Rc7 25. f5 e5 26. f6 Qc8 27. Qh5 Qe6
28. Bxe4 Bxe4 29. Qh4 Bc2 30. Rd2 Bxb3 31. Nb6 Rb8 32. Nd5 Rxc4 33. e4 g5 34.
Qe1 Ra4 35. Bc3 Bxd5 36. Rxd5 Qg4 37. h3 Qxe4 38. Qd2 Rc8 39. Rd3 0-1

[Event "65th Superfinal RUS-ch Women"]
[Site "Chita"]
[Date "2015.08.09"]
[Round "1"]
[White "Kosteniuk, Alexandra"]
[Black "Bodnaruk, Anastasia"]
[Result "1/2-1/2"]
[ECO "D00"]
[WhiteElo "2526"]
[BlackElo "2431"]
[Annotator "Robot 8"]
[PlyCount "139"]
[EventDate "2015.??.??"]
[EventCountry "RUS"]
[TimeControl "40/5400+30:1800+30"]

1. d4 Nf6 2. Nc3 d5 3. Bf4 e6 4. e3 Bd6 5. Bd3 O-O 6. Nf3 c5 7. dxc5 Bxc5 8.
O-O Nc6 9. a3 Bd6 10. Bg5 h6 11. Bh4 a6 12. Re1 Be7 13. Nd4 Ne4 14. Bxe7 Nxc3
15. Bxd8 Nxd1 16. Nxc6 bxc6 17. Rexd1 Rxd8 18. c4 a5 19. cxd5 exd5 20. Rac1 Bd7
21. Rd2 Rdb8 22. e4 Rb6 23. Rc5 Be6 24. f3 a4 25. Rdc2 Rb3 26. Rd2 Rb6 27. exd5
Bxd5 28. Bc4 Bxc4 29. Rxc4 Rab8 30. Rcc2 Re8 31. Kf2 Re5 32. Re2 Rd5 33. Re8+
Kh7 34. Ke1 f5 35. Re6 Rdb5 36. Ree2 Kg6 37. Kd1 Kf6 38. Kc1 Rd5 39. Rc4 Ra6
40. Rec2 Rd6 41. Rd2 Ke6 42. Re2+ Kd7 43. Rc5 g6 44. Rce5 Rf6 45. f4 Ra8 46.
Re7+ Kd6 47. Rg7 Kc5 48. Rd7 g5 49. Rc2+ Kb6 50. Rc4 Re6 51. Rb4+ Kc5 52. Rf7
Re1+ 53. Kd2 Rg1 54. Rxf5+ Kd6 55. g3 Rg2+ 56. Kc3 gxf4 57. Rfxf4 Rxh2 58. Rf6+
Kc7 59. Rc4 Ra6 60. Rh4 Rg2 61. Rf7+ Kb6 62. Rg7 Ra5 63. Rb4+ Rb5 64. Rxa4
Rbxb2 65. Rb4+ Rxb4 66. Kxb4 Rb2+ 67. Kc4 Ra2 68. Kb3 Rg2 69. a4 Re2 70. Rg6
1/2-1/2

[Event "65th Superfinal RUS-ch Women"]
[Site "Chita"]
[Date "2015.08.10"]
[Round "2"]
[White "Pogonina, Natalija"]
[Black "Savina, Anastasia"]
[Result "0-1"]
[ECO "E71"]
[WhiteElo "2460"]
[BlackElo "2429"]
[Annotator "Robot 11"]
[PlyCount "98"]
[EventDate "2015.??.??"]
[EventCountry "RUS"]
[TimeControl "40/5400+30:1800+30"]

1. d4 {[%emt 0:00:00]} Nf6 {[%emt 0:00:00]} 2. c4 {[%emt 0:00:00]} g6 {[%emt 0:
00:09]} 3. Nc3 {[%emt 0:00:00]} Bg7 {[%emt 0:00:04]} 4. e4 {[%emt 0:00:00]} d6
{[%emt 0:00:19]} 5. h3 {[%emt 0:00:06]} O-O {[%emt 0:00:05]} 6. Be3 {[%emt 0:
00:05]} e5 {[%emt 0:01:47]} 7. d5 {[%emt 0:00:14]} Na6 {[%emt 0:01:18]} 8. Nf3
{[%emt 0:04:31]} Nh5 {[%emt 0:00:00]} 9. Nd2 {[%emt 0:10:57]} Qe8 {[%emt 0:11:
57]} 10. Be2 {[%emt 0:23:16]} Nf4 {[%emt 0:02:01]} 11. Bxf4 {[%emt 0:00:04]}
exf4 {[%emt 0:00:05]} 12. O-O {[%emt 0:00:03]} Nc5 {[%emt 0:07:05]} 13. Qc2 {
[%emt 0:01:31]} a5 {[%emt 0:03:04]} 14. Rfe1 {[%emt 0:02:40]} Qe7 {[%emt 0:04:
34]} 15. Bf1 {[%emt 0:02:41]} Nd7 {[%emt 0:04:48]} 16. Nf3 {[%emt 0:02:34]} Ne5
{[%emt 0:06:03]} 17. Be2 {[%emt 0:02:00]} h5 {[%emt 0:06:18]} 18. Rad1 {[%emt
0:04:21]} Nxf3+ {[%emt 0:05:26]} 19. Bxf3 {[%emt 0:00:05]} Be5 {[%emt 0:00:14]}
20. Nb5 {[%emt 0:04:08]} Kg7 {[%emt 0:05:34]} 21. Rd3 {[%emt 0:08:16]} Rh8 {
[%emt 0:03:54]} 22. Nd4 {[%emt 0:08:04]} Bd7 {[%emt 0:04:04]} 23. Be2 {[%emt 0:
05:18]} b6 {[%emt 0:14:51]} 24. b3 {[%emt 0:02:41]} Rae8 {[%emt 0:02:14]} 25.
a3 {[%emt 0:06:28]} Qf6 {[%emt 0:07:49]} 26. Red1 {[%emt 0:06:55]} g5 {[%emt 0:
01:30]} 27. Nf5+ {[%emt 0:00:34]} Bxf5 {[%emt 0:01:34]} 28. exf5 {[%emt 0:00:
04]} Qxf5 {[%emt 0:00:33]} 29. R3d2 {[%emt 0:00:43]} Qxc2 {[%emt 0:02:30]} 30.
Rxc2 {[%emt 0:00:03]} f5 {[%emt 0:00:00]} 31. b4 {[%emt 0:04:18]} axb4 {[%emt
0:01:46]} 32. axb4 {[%emt 0:00:03]} g4 {[%emt 0:00:23]} 33. c5 {[%emt 0:00:15]}
bxc5 {[%emt 0:03:30]} 34. bxc5 {[%emt 0:00:04]} dxc5 {[%emt 0:00:35]} 35. Rxc5
{[%emt 0:00:04]} Bd6 {[%emt 0:00:44]} 36. Rc2 {[%emt 0:00:05]} f3 {[%emt 0:00:
09]} 37. Bb5 {[%emt 0:04:35]} Rb8 {[%emt 0:00:13]} 38. Bd3 {[%emt 0:00:10]} Kf6
{[%emt 0:00:57]} 39. Re1 {[%emt 0:00:38]} gxh3 {[%emt 0:00:49]} 40. gxf3 {
[%emt 0:00:00]} Rhg8+ {[%emt 0:00:00]} 41. Kh1 {[%emt 0:02:52]} Rg2 {[%emt 0:
08:52]} 42. f4 {[%emt 0:00:06]} Bxf4 {[%emt 0:00:54]} 43. Rc6+ {[%emt 0:04:07]}
Kf7 {[%emt 0:10:10]} 44. Bxf5 {[%emt 0:03:12]} Rh2+ {[%emt 0:00:35]} 45. Kg1 {
[%emt 0:00:03]} Rg8+ {[%emt 0:00:16]} 46. Kf1 {[%emt 0:01:26]} Rh1+ {[%emt 0:
00:17]} 47. Ke2 {[%emt 0:00:03]} Rxe1+ {[%emt 0:00:12]} 48. Kxe1 {[%emt 0:00:
04]} Rg1+ {[%emt 0:00:46]} 49. Ke2 {[%emt 0:00:04]} h2 {[%emt 0:00:10]} 0-1

[Event "65th Superfinal RUS-ch Women"]
[Site "Chita"]
[Date "2015.08.10"]
[Round "2"]
[White "Goryachkina, Aleksandra"]
[Black "Kovalevskaya, Ekaterina"]
[Result "1-0"]
[ECO "B30"]
[WhiteElo "2474"]
[BlackElo "2453"]
[Annotator "Robot 11"]
[PlyCount "69"]
[EventDate "2015.??.??"]
[EventCountry "RUS"]
[TimeControl "40/5400+30:1800+30"]

1. e4 {[%emt 0:00:00]} c5 {[%emt 0:00:00]} 2. Nf3 {[%emt 0:00:00]} Nc6 {[%emt
0:00:00]} 3. Bb5 {[%emt 0:00:00]} d6 {[%emt 0:00:15]} 4. O-O {[%emt 0:00:49]}
Bd7 {[%emt 0:00:26]} 5. Re1 {[%emt 0:00:21]} Nf6 {[%emt 0:00:34]} 6. h3 {[%emt
0:00:17]} e5 {[%emt 0:10:00]} 7. c3 {[%emt 0:04:12]} Be7 {[%emt 0:17:36]} 8. d4
{[%emt 0:04:17]} O-O {[%emt 0:00:14]} 9. d5 {[%emt 0:08:02]} Nb8 {[%emt 0:02:
31]} 10. Bd3 {[%emt 0:01:02]} b5 {[%emt 0:06:18]} 11. a4 {[%emt 0:02:29]} bxa4
{[%emt 0:14:05]} 12. Nbd2 {[%emt 0:03:18]} Ne8 {[%emt 0:02:49]} 13. Nc4 {[%emt
0:05:42]} Kh8 {[%emt 0:04:45]} 14. Bc2 {[%emt 0:06:37]} f5 {[%emt 0:08:25]} 15.
exf5 {[%emt 0:02:38]} Bxf5 {[%emt 0:00:06]} 16. Bxa4 {[%emt 0:02:32]} e4 {
[%emt 0:09:42]} 17. Nfd2 {[%emt 0:04:48]} Nf6 {[%emt 0:00:43]} 18. Nf1 {[%emt
0:00:50]} Bg6 {[%emt 0:07:44]} 19. Ng3 {[%emt 0:01:08]} Na6 {[%emt 0:04:47]}
20. Bc6 {[%emt 0:04:30]} Nc7 {[%emt 0:00:07]} 21. Ne3 {[%emt 0:03:51]} Rc8 {
[%emt 0:06:56]} 22. Rxa7 {[%emt 0:01:28]} Rf7 {[%emt 0:00:25]} 23. Nef5 {[%emt
0:05:51]} Bxf5 {[%emt 0:01:24]} 24. Nxf5 {[%emt 0:00:06]} Bf8 {[%emt 0:01:15]}
25. Ng3 {[%emt 0:02:45]} Re7 {[%emt 0:00:12]} 26. Ra4 {[%emt 0:01:33]} Re5 {
[%emt 0:00:30]} 27. Bf4 {[%emt 0:01:11]} Rxd5 {[%emt 0:00:50]} 28. Bxd5 {[%emt
0:00:18]} Ncxd5 {[%emt 0:00:02]} 29. Bg5 {[%emt 0:01:05]} e3 {[%emt 0:01:14]}
30. Bxe3 {[%emt 0:03:29]} Qd7 {[%emt 0:00:06]} 31. Qa1 {[%emt 0:01:33]} Nb6 {
[%emt 0:00:33]} 32. Ra7 {[%emt 0:00:50]} Qb5 {[%emt 0:00:11]} 33. Rb7 {[%emt 0:
05:33]} Nfd5 {[%emt 0:00:41]} 34. Bc1 {[%emt 0:03:00]} Qd3 {[%emt 0:00:53]} 35.
Qa7 {[%emt 0:02:10]} 1-0

[Event "65th Superfinal RUS-ch Women"]
[Site "Chita"]
[Date "2015.08.10"]
[Round "2"]
[White "Gunina, Valentina"]
[Black "Kashlinskaya, Alina"]
[Result "1-0"]
[ECO "A29"]
[WhiteElo "2531"]
[BlackElo "2441"]
[Annotator "Robot 11"]
[PlyCount "65"]
[EventDate "2015.??.??"]
[EventCountry "RUS"]
[TimeControl "40/5400+30:1800+30"]

1. c4 {[%emt 0:00:00]} e5 {[%emt 0:01:11]} 2. Nc3 {[%emt 0:00:15]} Nf6 {[%emt
0:00:05]} 3. Nf3 {[%emt 0:00:20]} Nc6 {[%emt 0:00:06]} 4. g3 {[%emt 0:00:39]}
d5 {[%emt 0:00:31]} 5. cxd5 {[%emt 0:00:16]} Nxd5 {[%emt 0:00:07]} 6. Bg2 {
[%emt 0:00:35]} Nb6 {[%emt 0:00:34]} 7. O-O {[%emt 0:01:21]} Be7 {[%emt 0:00:
11]} 8. d3 {[%emt 0:02:45]} O-O {[%emt 0:00:10]} 9. a3 {[%emt 0:01:38]} Be6 {
[%emt 0:02:14]} 10. b4 {[%emt 0:02:44]} Nd4 {[%emt 0:03:49]} 11. Rb1 {[%emt 0:
35:08]} Nd5 {[%emt 0:23:27]} 12. Bb2 {[%emt 0:03:23]} Nxc3 {[%emt 0:06:37]} 13.
Bxc3 {[%emt 0:00:05]} f6 {[%emt 0:09:20]} 14. Bxd4 {[%emt 0:10:12]} exd4 {
[%emt 0:00:06]} 15. Qc1 {[%emt 0:00:35]} Rc8 {[%emt 0:09:14]} 16. Qf4 {[%emt 0:
21:31]} c5 {[%emt 0:01:10]} 17. bxc5 {[%emt 0:00:04]} Bxc5 {[%emt 0:00:15]} 18.
Rxb7 {[%emt 0:00:45]} Bd5 {[%emt 0:01:25]} 19. Rbb1 {[%emt 0:02:38]} Bxf3 {
[%emt 0:15:58]} 20. Bxf3 {[%emt 0:00:27]} Bxa3 {[%emt 0:00:10]} 21. Rb7 {[%emt
0:00:41]} Bc5 {[%emt 0:02:12]} 22. Qf5 {[%emt 0:04:35]} g6 {[%emt 0:05:51]} 23.
Qe6+ {[%emt 0:00:13]} Kh8 {[%emt 0:00:02]} 24. Rc1 {[%emt 0:01:26]} Qd6 {[%emt
0:02:33]} 25. Qc4 {[%emt 0:01:55]} f5 {[%emt 0:07:21]} 26. Kg2 {[%emt 0:03:16]}
a6 {[%emt 0:03:16]} 27. h4 {[%emt 0:01:39]} Rf6 {[%emt 0:02:46]} 28. Qa4 {
[%emt 0:00:49]} Rff8 {[%emt 0:00:24]} 29. Rd7 {[%emt 0:00:43]} Qb6 {[%emt 0:02:
01]} 30. Qc4 {[%emt 0:01:46]} Qb5 {[%emt 0:00:22]} 31. Qd5 {[%emt 0:00:33]} Qb6
{[%emt 0:01:25]} 32. Qe5+ {[%emt 0:00:17]} Rf6 {[%emt 0:00:00]} 33. Rxc5 {
[%emt 0:00:18]} 1-0

[Event "65th Superfinal RUS-ch Women"]
[Site "Chita"]
[Date "2015.08.10"]
[Round "2"]
[White "Bodnaruk, Anastasia"]
[Black "Lagno, Kateryna"]
[Result "1/2-1/2"]
[ECO "C92"]
[WhiteElo "2431"]
[BlackElo "2530"]
[Annotator "Robot 11"]
[PlyCount "107"]
[EventDate "2015.??.??"]
[EventCountry "RUS"]
[TimeControl "40/5400+30:1800+30"]

1. e4 {[%emt 0:00:00]} e5 {[%emt 0:00:00]} 2. Nf3 {[%emt 0:00:00]} Nc6 {[%emt
0:00:00]} 3. Bb5 {[%emt 0:00:00]} a6 {[%emt 0:00:08]} 4. Ba4 {[%emt 0:00:00]}
Nf6 {[%emt 0:00:24]} 5. O-O {[%emt 0:00:06]} Be7 {[%emt 0:00:23]} 6. Re1 {
[%emt 0:00:16]} b5 {[%emt 0:00:28]} 7. Bb3 {[%emt 0:00:04]} d6 {[%emt 0:00:11]}
8. c3 {[%emt 0:00:37]} O-O {[%emt 0:00:20]} 9. h3 {[%emt 0:00:07]} Re8 {[%emt
0:01:25]} 10. Ng5 {[%emt 0:03:23]} Rf8 {[%emt 0:00:25]} 11. Nf3 {[%emt 0:00:07]
} Bb7 {[%emt 0:00:54]} 12. d4 {[%emt 0:00:49]} Re8 {[%emt 0:00:17]} 13. Nbd2 {
[%emt 0:03:09]} exd4 {[%emt 0:00:35]} 14. cxd4 {[%emt 0:01:43]} Nd7 {[%emt 0:
00:43]} 15. Nf1 {[%emt 0:02:55]} Na5 {[%emt 0:00:30]} 16. Bc2 {[%emt 0:00:15]}
Bf6 {[%emt 0:00:31]} 17. Bf4 {[%emt 0:09:39]} Nf8 {[%emt 0:00:51]} 18. b3 {
[%emt 0:13:35]} c5 {[%emt 0:09:55]} 19. Ng3 {[%emt 0:05:33]} Ne6 {[%emt 0:08:
02]} 20. Be3 {[%emt 0:02:04]} cxd4 {[%emt 0:00:54]} 21. Nxd4 {[%emt 0:00:24]}
Nc6 {[%emt 0:28:12]} 22. Nxc6 {[%emt 0:07:24]} Bxc6 {[%emt 0:01:42]} 23. Rc1 {
[%emt 0:00:03]} Bb2 {[%emt 0:04:55]} 24. Rb1 {[%emt 0:00:10]} Bc3 {[%emt 0:09:
14]} 25. Rf1 {[%emt 0:05:30]} d5 {[%emt 0:06:20]} 26. exd5 {[%emt 0:09:20]}
Qxd5 {[%emt 0:00:05]} 27. Be4 {[%emt 0:06:50]} Qxd1 {[%emt 0:00:08]} 28. Rfxd1
{[%emt 0:00:08]} Bxe4 {[%emt 0:00:41]} 29. Nxe4 {[%emt 0:00:04]} Be5 {[%emt 0:
02:52]} 30. a4 {[%emt 0:03:52]} Red8 {[%emt 0:03:34]} 31. Bb6 {[%emt 0:04:58]}
Rxd1+ {[%emt 0:00:59]} 32. Rxd1 {[%emt 0:00:02]} Rc8 {[%emt 0:03:16]} 33. a5 {
[%emt 0:05:22]} g6 {[%emt 0:01:40]} 34. g3 {[%emt 0:05:14]} f5 {[%emt 0:09:23]}
35. Rd5 {[%emt 0:04:42]} Bg7 {[%emt 0:00:24]} 36. Nc5 {[%emt 0:02:14]} Nxc5 {
[%emt 0:00:25]} 37. Bxc5 {[%emt 0:00:28]} Bf6 {[%emt 0:01:16]} 38. Be3 {[%emt
0:05:11]} Bc3 {[%emt 0:04:17]} 39. Rd6 {[%emt 0:02:33]} Bxa5 {[%emt 0:00:10]}
40. Rxa6 {[%emt 0:00:00]} Bc3 {[%emt 0:00:00]} 41. Kf1 {[%emt 0:07:39]} Rd8 {
[%emt 0:01:38]} 42. Ke2 {[%emt 0:01:36]} Rd7 {[%emt 0:06:11]} 43. h4 {[%emt 0:
07:21]} Kf7 {[%emt 0:05:34]} 44. h5 {[%emt 0:02:44]} gxh5 {[%emt 0:00:14]} 45.
Rh6 {[%emt 0:00:36]} Bg7 {[%emt 0:00:38]} 46. Rxh5 {[%emt 0:00:54]} Kg6 {[%emt
0:00:17]} 47. Rg5+ {[%emt 0:04:58]} Kf6 {[%emt 0:00:05]} 48. g4 {[%emt 0:03:21]
} fxg4 {[%emt 0:03:02]} 49. Rxb5 {[%emt 0:02:11]} Bf8 {[%emt 0:01:19]} 50. Kf1
{[%emt 0:02:14]} Rd3 {[%emt 0:02:16]} 51. Ke2 {[%emt 0:00:57]} Rd7 {[%emt 0:00:
05]} 52. Kf1 {[%emt 0:00:05]} Rd3 {[%emt 0:00:55]} 53. Ke2 {[%emt 0:00:08]} Rd7
{[%emt 0:00:04]} 54. Kf1 {[%emt 0:00:16]} 1/2-1/2

[Event "65th Superfinal RUS-ch Women"]
[Site "Chita"]
[Date "2015.08.10"]
[Round "2"]
[White "Guseva, Marina"]
[Black "Girya, Olga"]
[Result "0-1"]
[ECO "E32"]
[WhiteElo "2431"]
[BlackElo "2487"]
[Annotator "Robot 11"]
[PlyCount "102"]
[EventDate "2015.??.??"]
[EventCountry "RUS"]
[TimeControl "40/5400+30:1800+30"]

1. d4 {[%emt 0:00:00]} Nf6 {[%emt 0:00:00]} 2. c4 {[%emt 0:00:00]} e6 {[%emt 0:
00:00]} 3. Nc3 {[%emt 0:00:00]} Bb4 {[%emt 0:00:00]} 4. Qc2 {[%emt 0:00:00]}
O-O {[%emt 0:00:19]} 5. a3 {[%emt 0:00:08]} Bxc3+ {[%emt 0:00:12]} 6. Qxc3 {
[%emt 0:00:05]} b6 {[%emt 0:00:28]} 7. Bg5 {[%emt 0:00:08]} Bb7 {[%emt 0:00:19]
} 8. e3 {[%emt 0:00:06]} d6 {[%emt 0:01:07]} 9. Ne2 {[%emt 0:00:33]} Nbd7 {
[%emt 0:01:14]} 10. Qc2 {[%emt 0:00:08]} c5 {[%emt 0:00:40]} 11. Rd1 {[%emt 0:
00:06]} h6 {[%emt 0:01:38]} 12. Bh4 {[%emt 0:00:06]} Qe7 {[%emt 0:00:57]} 13.
dxc5 {[%emt 0:00:51]} bxc5 {[%emt 0:01:06]} 14. Nc3 {[%emt 0:00:19]} Rfd8 {
[%emt 0:04:15]} 15. f3 {[%emt 0:01:15]} d5 {[%emt 0:08:36]} 16. Be2 {[%emt 0:
10:09]} Ne5 {[%emt 0:07:41]} 17. cxd5 {[%emt 0:26:20]} exd5 {[%emt 0:00:05]}
18. O-O {[%emt 0:01:49]} d4 {[%emt 0:13:49]} 19. Ne4 {[%emt 0:11:08]} Bxe4 {
[%emt 0:01:06]} 20. fxe4 {[%emt 0:00:06]} dxe3 {[%emt 0:01:05]} 21. Bxf6 {
[%emt 0:03:28]} gxf6 {[%emt 0:00:06]} 22. Qc3 {[%emt 0:00:17]} Rxd1 {[%emt 0:
05:11]} 23. Bxd1 {[%emt 0:01:36]} Rd8 {[%emt 0:11:12]} 24. Qxe3 {[%emt 0:00:36]
} Qd6 {[%emt 0:03:53]} 25. Bh5 {[%emt 0:03:07]} Kg7 {[%emt 0:06:09]} 26. Qg3+ {
[%emt 0:03:19]} Kf8 {[%emt 0:00:24]} 27. Qf4 {[%emt 0:06:32]} Ke7 {[%emt 0:03:
02]} 28. Qxh6 {[%emt 0:03:17]} Qd4+ {[%emt 0:00:43]} 29. Kh1 {[%emt 0:00:30]}
Rd6 {[%emt 0:03:46]} 30. b3 {[%emt 0:14:18]} Qxe4 {[%emt 0:11:41]} 31. Qc1 {
[%emt 0:01:30]} Qd4 {[%emt 0:03:50]} 32. h3 {[%emt 0:03:00]} a5 {[%emt 0:06:04]
} 33. Rf4 {[%emt 0:09:21]} Qd5 {[%emt 0:02:19]} 34. Qe3 {[%emt 0:01:44]} Rb6 {
[%emt 0:01:06]} 35. Rf3 {[%emt 0:00:56]} Qd4 {[%emt 0:02:14]} 36. Qe1 {[%emt 0:
00:31]} a4 {[%emt 0:00:38]} 37. bxa4 {[%emt 0:00:18]} c4 {[%emt 0:00:16]} 38.
Re3 {[%emt 0:00:45]} Rb3 {[%emt 0:00:45]} 39. Re4 {[%emt 0:00:28]} Qc5 {[%emt
0:00:44]} 40. Qd1 {[%emt 0:00:00]} Rxa3 {[%emt 0:00:00]} 41. Bg4 {[%emt 0:20:
34]} Rd3 {[%emt 0:06:07]} 42. Qc2 {[%emt 0:00:47]} Qd5 {[%emt 0:09:22]} 43. Bf5
{[%emt 0:01:55]} Kf8 {[%emt 0:04:40]} 44. Qf2 {[%emt 0:06:02]} Rd2 {[%emt 0:01:
25]} 45. Qg3 {[%emt 0:01:39]} Rd3 {[%emt 0:05:36]} 46. Re3 {[%emt 0:02:05]}
Rd1+ {[%emt 0:00:50]} 47. Kh2 {[%emt 0:00:41]} Qd4 {[%emt 0:00:19]} 48. Bc2 {
[%emt 0:00:37]} Rc1 {[%emt 0:00:46]} 49. Bh7 {[%emt 0:00:15]} c3 {[%emt 0:02:
07]} 50. Re1 {[%emt 0:00:32]} Nf3+ {[%emt 0:00:44]} 51. Qxf3 {[%emt 0:00:56]}
Rxe1 {[%emt 0:00:19]} 0-1

[Event "65th Superfinal RUS-ch Women"]
[Site "Chita"]
[Date "2015.08.10"]
[Round "2"]
[White "Ovod, Evgenija"]
[Black "Kosteniuk, Alexandra"]
[Result "1/2-1/2"]
[ECO "A46"]
[WhiteElo "2327"]
[BlackElo "2526"]
[Annotator "Robot 11"]
[PlyCount "52"]
[EventDate "2015.??.??"]
[EventCountry "RUS"]
[TimeControl "40/5400+30:1800+30"]

1. d4 {[%emt 0:00:00]} Nf6 {[%emt 0:00:00]} 2. Nf3 {[%emt 0:00:00]} e6 {[%emt
0:03:48]} 3. e3 {[%emt 0:00:00]} d5 {[%emt 0:01:58]} 4. c4 {[%emt 0:00:01]} Be7
{[%emt 0:00:22]} 5. b3 {[%emt 0:00:12]} O-O {[%emt 0:03:37]} 6. Bb2 {[%emt 0:
00:06]} b6 {[%emt 0:04:49]} 7. cxd5 {[%emt 0:00:16]} exd5 {[%emt 0:03:49]} 8.
Nc3 {[%emt 0:00:29]} c6 {[%emt 0:10:14]} 9. Ne5 {[%emt 0:16:07]} Nfd7 {[%emt 0:
04:02]} 10. Nd3 {[%emt 0:11:04]} Bd6 {[%emt 0:01:32]} 11. Be2 {[%emt 0:00:28]}
Qh4 {[%emt 0:04:02]} 12. Bf3 {[%emt 0:09:00]} Nf6 {[%emt 0:06:03]} 13. Rc1 {
[%emt 0:30:58]} Re8 {[%emt 0:13:01]} 14. g3 {[%emt 0:08:03]} Qh3 {[%emt 0:00:
56]} 15. Ne2 {[%emt 0:00:07]} Ne4 {[%emt 0:06:38]} 16. Nef4 {[%emt 0:01:11]}
Qh6 {[%emt 0:01:35]} 17. O-O {[%emt 0:01:47]} Bf5 {[%emt 0:07:34]} 18. Bg2 {
[%emt 0:02:06]} g5 {[%emt 0:01:56]} 19. Ne2 {[%emt 0:01:29]} Nf6 {[%emt 0:00:
51]} 20. f3 {[%emt 0:03:23]} Re6 {[%emt 0:07:27]} 21. Ne5 {[%emt 0:01:36]} Nbd7
{[%emt 0:02:52]} 22. Rxc6 {[%emt 0:02:48]} Rae8 {[%emt 0:01:00]} 23. Qa1 {
[%emt 0:08:19]} Nb8 {[%emt 0:04:04]} 24. Rcc1 {[%emt 0:00:43]} Nbd7 {[%emt 0:
00:04]} 25. Rc6 {[%emt 0:01:21]} Nb8 {[%emt 0:00:04]} 26. Rcc1 {[%emt 0:00:04]}
Nbd7 {[%emt 0:00:03]} 1/2-1/2